lending/lending_fUSD_20241120
["ID","MTS","AMOUNT","RATE_DAILY","PERIOD"]
[342739559,1732090340702,-1329.44,0.00059999,120]
[342739560,1732090340711,-1607.8,0.00059999,120]
[342739561,1732090341346,-500.0,0.00059999,120]
[342739562,1732090341363,-1376.52,0.00059999,120]
[342739563,1732090341379,-742.7,0.00059999,20]
[342739564,1732090341397,-843.95,0.00059999,120]
[342739565,1732090341423,-1244.57,0.00059999,120]
[342739566,1732090341448,-1316.06,0.00059999,120]
[342739567,1732090341471,-553.01,0.00059999,120]
[342739568,1732090341494,-721.45,0.00059999,120]
[342739569,1732090341515,-2365.65,0.00059999,120]
[342739570,1732090341534,-526.18,0.00059999,120]
[342739571,1732090341561,-1140.86,0.00059999,120]
[342739572,1732090341583,-1206.39,0.00059999,120]
[342739573,1732090341606,-851.18,0.00059999,120]
[342739574,1732090341627,-811.24,0.00059999,21]
[342739575,1732090341647,-500.0,0.00059999,120]
[342739576,1732090341657,-500.0,0.00059999,120]
[342739577,1732090341667,-1177.91,0.00059999,120]
[342739578,1732090341676,-3911.81,0.00059999,120]
[342739579,1732090341685,-7513.0,0.00059999,3]
[342739580,1732090341695,-810.73,0.00059999,120]
[342739581,1732090341704,-618.5,0.00059999,120]
[342739582,1732090341714,-531.91,0.00059999,60]
[342739583,1732090341724,-703.55,0.00059999,120]
[342739584,1732090341733,-578.53,0.00059999,120]
[342739585,1732090341742,-500.0,0.00059999,120]
[342739586,1732090341751,-1133.36,0.00059999,120]
[342739587,1732090341760,-525.98000033,0.00059999,120]
[342739588,1732090341769,-646.34,0.00059999,7]
[342739589,1732090341779,-296.25,0.00059999,120]
[342739590,1732090341788,-1092.33,0.00059999,120]
[342739591,1732090341801,-576.16,0.00059999,120]
[342739592,1732090341811,-642.09,0.00059999,3]
[342739593,1732090341820,-1126.69,0.00059999,120]
[342739594,1732090341830,-705.53,0.00059999,120]
[342739595,1732090341839,-1013.55,0.00059999,120]
[342739596,1732090341848,-1520.14,0.00059999,120]
[342739597,1732090341857,-446.16,0.00059999,120]
[342739598,1732090341867,-500.0,0.00059999,120]
[342739599,1732090341877,-2168.51,0.00059999,120]
[342739600,1732090341886,-500.0,0.00059999,120]
[342739601,1732090341895,-500.0,0.00059999,120]
[342739602,1732090341906,-456.05588679,0.00059999,120]
[342739603,1732090341915,-594.32,0.00059999,120]
[342739604,1732090341925,-500.0,0.00059999,120]
[342739605,1732090341934,-500.0,0.00059999,120]
[342739606,1732090341943,-709.11,0.00059999,120]
[342739607,1732090341953,-511.99,0.00059999,120]
[342739608,1732090341962,-702.33,0.00059999,120]
[342739609,1732090341971,-500.0,0.00059999,120]
[342739610,1732090341980,-500.0,0.00059999,120]
[342739611,1732090341990,-797.68,0.00059999,120]
[342739612,1732090341999,-321.58,0.00059999,120]
[342739613,1732090342008,-500.0,0.00059999,120]
[342739614,1732090342018,-500.0,0.00059999,120]
[342739615,1732090342027,-514.31,0.00059999,120]
[342739616,1732090342037,-456.08,0.00059999,120]
[342739617,1732090342048,-849.65,0.00059999,120]
[342739618,1732090342062,-569.0,0.00059999,120]
[342739619,1732090342080,-500.0,0.00059999,120]
[342739620,1732090342097,-2068.02,0.00059999,120]
[342739621,1732090342106,-700.75,0.00059999,120]
[342739622,1732090342115,-798.52,0.00059999,120]
[342739623,1732090342124,-1516.88,0.00059999,120]
[342739624,1732090342133,-982.26,0.00059999,120]
[342739625,1732090342142,-500.0,0.00059999,120]
[342739626,1732090342151,-500.0,0.00059999,120]
[342739627,1732090342159,-650.76,0.00059999,21]
[342739628,1732090342169,-447.40404202,0.00059999,120]
[342739629,1732090342178,-998.06,0.00059999,120]
[342739630,1732090342187,-2581.57,0.00059999,120]
[342739631,1732090342196,-635.36,0.00059999,120]
[342739632,1732090342205,-2031.6,0.00059999,120]
[342739633,1732090342214,-500.0,0.00059999,120]
[342739634,1732090342223,-418.29,0.00059999,120]
[342739635,1732090342232,-3206.56,0.00059999,120]
[342739636,1732090342240,-711.44,0.00059999,120]
[342739637,1732090342249,-729.82,0.00059999,120]
[342739638,1732090342258,-5192.93,0.00059999,120]
[342739639,1732090342268,-707.74,0.00059999,120]
[342739640,1732090342276,-647.87,0.00059999,120]
[342739641,1732090342285,-500.0,0.00059999,120]
[342739642,1732090342295,-720.2,0.00059999,120]
[342739643,1732090342311,-717.59,0.00059999,120]
[342739644,1732090342319,-1703.66,0.00059999,120]
[342739645,1732090342329,-508.31,0.00059999,120]
[342739646,1732090342339,-2604.2,0.00059999,120]
[342739647,1732090342348,-2810.53,0.00059999,120]
[342739648,1732090342357,-2080.78,0.00059999,120]
[342739649,1732090342366,-500.22,0.00059999,120]
[342739650,1732090342375,-1137.2,0.00059999,3]
[342739651,1732090342387,-642.24,0.00059999,30]
[342739652,1732090342397,-1301.4,0.00059999,120]
[342739653,1732090342405,-505.72,0.00059999,120]
[342739654,1732090342415,-500.0,0.00059999,120]
[342739655,1732090342423,-946.93,0.00059999,120]
[342739656,1732090342432,-667.95,0.00059999,120]
[342739657,1732090342441,-151.0,0.00059999,120]
[342739658,1732090342450,-151.0,0.00059999,120]
[342739659,1732090342459,-163.454904,0.00059999,120]
[342739660,1732090342468,-151.0,0.00059999,120]
[342739661,1732090342477,-151.0,0.00059999,120]
[342739662,1732090342486,-151.0,0.00059999,120]
[342739663,1732090342495,-151.0,0.00059999,120]
[342739664,1732090342503,-151.0,0.00059999,120]
[342739665,1732090342513,-151.0,0.00059999,120]
[342739666,1732090342521,-151.0,0.00059999,120]
[342739667,1732090342530,-479.40120073,0.00059999,120]
[342739668,1732090342539,-151.0,0.00059999,120]
[342739669,1732090342548,-151.0,0.00059999,120]
[342739670,1732090342557,-201.639152,0.00059999,120]
[342739671,1732090342566,-500.0,0.0006,120]
[342739672,1732090342575,-500.0,0.0006,120]
[342739673,1732090342584,-1523.0,0.0006,120]
[342739674,1732090342593,-1000.0,0.0006,120]
[342739675,1732090342602,-20000.0,0.0006,120]
[342739676,1732090342611,-1228.0,0.0006,5]
[342739677,1732090342620,-2004.0,0.0006,90]
[342739678,1732090342630,-500.39,0.0006,4]
[342739679,1732090342639,-500.0,0.0006,4]
[342739680,1732090342648,-500.0,0.0006,4]
[342739681,1732090342657,-1500.0,0.0006,90]
[342739682,1732090342667,-2700.0,0.0006,61]
[342739683,1732090342676,-19521.73839121,0.0006,99]
[342739684,1732090342686,-2400.0,0.00060024,120]
[342739685,1732090342695,-1100.0,0.00060024,120]
[342739686,1732090342704,-1200.0,0.00060024,120]
[342739687,1732090342713,-663.58500677,0.00060027,120]
[342739688,1732090342722,-500.0,0.00060027,120]
[342739689,1732090342732,-1523.0,0.00060027,120]
[342739690,1732090342741,-151.0,0.00060027,120]
[342739691,1732090342750,-500.0,0.00060055,120]
[342739692,1732090342759,-1523.0,0.00060055,120]
[342739693,1732090342767,-500.0,0.00060082,120]
[342739694,1732090342777,-1523.0,0.00060082,120]
[342739695,1732090342786,-733.1923819,0.0006011,120]
[342739696,1732090342796,-1523.0,0.0006011,120]
[342739697,1732090342810,-1523.0,0.00060137,120]
[342739698,1732090342820,-151.0,0.00060137,120]
[342739699,1732090342830,-318.03,0.00060159,120]
[342739700,1732090342839,-180.99,0.00060159,120]
[342739701,1732090342849,-1523.0,0.00060164,120]
[342739702,1732090342858,-1523.0,0.00060192,120]
[342739703,1732090342867,-700.0,0.000602,120]
[342739704,1732090342877,-1523.0,0.00060219,120]
[342739705,1732090342886,-1531.2096984,0.00060247,120]
[342739706,1732090342895,-583.63,0.00060273,120]
[342739707,1732090342904,-1068.5,0.00060273,120]
[342739708,1732090342914,-598.94,0.00060273,120]
[342739709,1732090342923,-1682.29,0.00060273,120]
[342739710,1732090342932,-12247.35,0.00060273,120]
[342739711,1732090342941,-1420.1,0.00060273,120]
[342739712,1732090342951,-500.0,0.00060273,120]
[342739713,1732090342960,-1292.82,0.00060273,120]
[342739714,1732090342969,-1329.44,0.00060273,120]
[342739715,1732090342978,-1607.8,0.00060273,120]
[342739716,1732090342987,-233.32560066,0.00060273,120]
[342739717,1732090342996,-1376.52,0.00060273,120]
[342739718,1732090343005,-742.7,0.00060273,20]
[342739719,1732090343015,-843.95,0.00060273,120]
[342739720,1732090343023,-1244.57,0.00060273,120]
[342739721,1732090343032,-1316.06,0.00060273,120]
[342739722,1732090343042,-553.01,0.00060273,120]
[342739723,1732090343052,-721.45,0.00060273,120]
[342739724,1732090343062,-2365.65,0.00060273,120]
[342739725,1732090343071,-526.18,0.00060273,120]
[342739726,1732090343080,-1140.86,0.00060273,120]
[342739727,1732090343089,-1206.39,0.00060273,120]
[342739728,1732090343098,-851.18,0.00060273,120]
[342739729,1732090343107,-811.24,0.00060273,21]
[342739730,1732090343116,-500.0,0.00060273,120]
[342739731,1732090343126,-500.0,0.00060273,120]
[342739732,1732090343135,-1177.91,0.00060273,120]
[342739733,1732090343144,-3911.81,0.00060273,120]
[342739734,1732090343152,-7513.0,0.00060273,3]
[342739735,1732090343161,-810.73,0.00060273,120]
[342739736,1732090343171,-618.5,0.00060273,120]
[342739737,1732090343181,-531.91,0.00060273,60]
[342739738,1732090343190,-703.55,0.00060273,120]
[342739739,1732090343200,-578.53,0.00060273,120]
[342739740,1732090343209,-500.0,0.00060273,120]
[342739741,1732090343219,-1133.36,0.00060273,120]
[342739742,1732090343228,-646.34,0.00060273,7]
[342739743,1732090343237,-1092.33,0.00060273,120]
[342739744,1732090343247,-576.16,0.00060273,120]
[342739745,1732090343256,-642.09,0.00060273,3]
[342739746,1732090343265,-1126.69,0.00060273,120]
[342739747,1732090343274,-705.53,0.00060273,120]
[342739748,1732090343282,-1013.55,0.00060273,120]
[342739749,1732090343291,-1520.14,0.00060273,120]
[342739750,1732090343303,-500.0,0.00060273,120]
[342739751,1732090343317,-2168.51,0.00060273,120]
[342739752,1732090343338,-500.0,0.00060273,120]
[342739753,1732090343358,-161.45446901,0.00060273,120]
[342739754,1732090343380,-594.32,0.00060273,120]
[342739755,1732090343401,-500.0,0.00060273,120]
[342739756,1732090343424,-500.0,0.00060273,120]
[342739757,1732090343446,-709.11,0.00060273,120]
[342739758,1732090343470,-511.99,0.00060273,120]
[342739759,1732090343496,-702.33,0.00060273,120]
[342739760,1732090343519,-500.0,0.00060273,120]
[342739761,1732090343542,-493.1,0.00060273,120]
[342739762,1732090343575,-797.68,0.00060273,120]
[342739763,1732090343595,-500.0,0.00060273,120]
[342739764,1732090343604,-500.0,0.00060273,120]
[342739765,1732090343614,-514.31,0.00060273,120]
[342739766,1732090343623,-849.65,0.00060273,120]
[342739767,1732090343632,-569.0,0.00060273,120]
[342739768,1732090343641,-538.17000945,0.00060273,120]
[342739769,1732090343650,-2068.02,0.00060273,120]
[342739770,1732090343659,-700.75,0.00060273,120]
[342739771,1732090343668,-798.52,0.00060273,120]
[342739772,1732090343677,-1516.88,0.00060273,120]
[342739773,1732090343687,-982.26,0.00060273,120]
[342739774,1732090343696,-505.20149215,0.00060273,120]
[342739775,1732090343705,-500.0,0.00060273,120]
[342739776,1732090343714,-650.76,0.00060273,21]
[342739777,1732090343723,-998.06,0.00060273,120]
[342739778,1732090343732,-2581.57,0.00060273,120]
[342739779,1732090343742,-635.36,0.00060273,120]
[342739780,1732090343751,-2031.6,0.00060273,120]
[342739781,1732090343760,-548.57687222,0.00060273,120]
[342739782,1732090343770,-3206.56,0.00060273,120]
[342739783,1732090343779,-711.44,0.00060273,120]
[342739784,1732090343788,-729.82,0.00060273,120]
[342739785,1732090343799,-5192.93,0.00060273,120]
[342739786,1732090343809,-707.74,0.00060273,120]
[342739787,1732090343818,-647.87,0.00060273,120]
[342739788,1732090343827,-500.0,0.00060273,120]
[342739789,1732090343837,-720.2,0.00060273,120]
[342739790,1732090343846,-717.59,0.00060273,120]
[342739791,1732090343855,-1703.66,0.00060273,120]
[342739792,1732090343865,-508.31,0.00060273,120]
[342739793,1732090343875,-2604.2,0.00060273,120]
[342739794,1732090343885,-2810.53,0.00060273,120]
[342739795,1732090343894,-2080.78,0.00060273,120]
[342739796,1732090343903,-500.22,0.00060273,120]
[342739797,1732090343912,-1137.2,0.00060273,3]
[342739798,1732090343922,-642.24,0.00060273,30]
[342739799,1732090343932,-1301.4,0.00060273,120]
[342739800,1732090343942,-505.72,0.00060273,120]
[342739801,1732090343952,-169.81265601,0.00060273,120]
[342739802,1732090343962,-946.93,0.00060273,120]
[342739803,1732090343972,-667.95,0.00060273,120]
[342739804,1732090343981,-3068.22,0.00060274,120]
[342739805,1732090343992,-500.0,0.00060298,120]
[342739806,1732090344001,-20000.0,0.000605,120]
[342739807,1732090344011,-400.0,0.000605,120]
[342739808,1732090344020,-583.63,0.00060547,120]
[342739809,1732090344030,-1068.5,0.00060547,120]
[342739810,1732090344040,-598.94,0.00060547,120]
[342739811,1732090344050,-1682.29,0.00060547,120]
[342739812,1732090344060,-12247.35,0.00060547,120]
[342739813,1732090344070,-1420.1,0.00060547,120]
[342739814,1732090344079,-500.0,0.00060547,120]
[342739815,1732090344088,-1292.82,0.00060547,120]
[342739816,1732090344098,-1329.44,0.00060547,120]
[342739817,1732090344107,-1607.8,0.00060547,120]
[342739818,1732090344117,-1376.52,0.00060547,120]
[342739819,1732090344126,-742.7,0.00060547,20]
[342739820,1732090344135,-843.95,0.00060547,120]
[342739821,1732090344145,-1244.57,0.00060547,120]
[342739822,1732090344154,-1316.06,0.00060547,120]
[342739823,1732090344164,-553.01,0.00060547,120]
[342739824,1732090344173,-721.45,0.00060547,120]
[342739825,1732090344183,-2365.65,0.00060547,120]
[342739826,1732090344192,-526.18,0.00060547,120]
[342739827,1732090344201,-1140.86,0.00060547,120]
[342739828,1732090344211,-1206.39,0.00060547,120]
[342739829,1732090344220,-851.18,0.00060547,120]
[342739830,1732090344229,-811.24,0.00060547,21]
[342739831,1732090344239,-500.0,0.00060547,120]
[342739832,1732090344248,-500.0,0.00060547,120]
[342739833,1732090344258,-1177.91,0.00060547,120]
[342739834,1732090344267,-3911.81,0.00060547,120]
[342739835,1732090344277,-7513.0,0.00060547,3]
[342739836,1732090344286,-810.73,0.00060547,120]
[342739837,1732090344295,-618.5,0.00060547,120]
[342739838,1732090344310,-531.91,0.00060547,60]
[342739839,1732090344320,-703.55,0.00060547,120]
[342739840,1732090344329,-578.53,0.00060547,120]
[342739841,1732090344339,-500.0,0.00060547,120]
[342739842,1732090344352,-1133.36,0.00060547,120]
[342739843,1732090344361,-646.34,0.00060547,7]
[342739844,1732090344370,-1092.33,0.00060547,120]
[342739845,1732090344381,-576.16,0.00060547,120]
[342739846,1732090344390,-642.09,0.00060547,3]
[342739847,1732090344399,-1126.69,0.00060547,120]
[342739848,1732090344408,-705.53,0.00060547,120]
[342739849,1732090344418,-1013.55,0.00060547,120]
[342739850,1732090344427,-1520.14,0.00060547,120]
[342739851,1732090344436,-162.16,0.00060547,120]
[342739852,1732090344445,-2168.51,0.00060547,120]
[342739853,1732090344454,-500.0,0.00060547,120]
[342739854,1732090344463,-594.32,0.00060547,120]
[342739855,1732090344472,-382.4948208,0.00060547,120]
[342739856,1732090344481,-709.11,0.00060547,120]
[342739857,1732090344490,-511.99,0.00060547,120]
[342739858,1732090344499,-702.33,0.00060547,120]
[342739859,1732090344508,-500.0,0.00060547,120]
[342739860,1732090344517,-797.68,0.00060547,120]
[342739861,1732090344526,-500.0,0.00060547,120]
[342739862,1732090344535,-500.0,0.00060547,120]
[342739863,1732090344544,-514.31,0.00060547,120]
[342739864,1732090344555,-849.65,0.00060547,120]
[342739865,1732090344564,-569.0,0.00060547,120]
[342739866,1732090344701,-700.75,0.00060547,120]
[342739867,1732090344734,-2068.02,0.00060547,120]
[342739868,1732090344743,-798.52,0.00060547,120]
[342739869,1732090344752,-1516.88,0.00060547,120]
[342739870,1732090344761,-982.26,0.00060547,120]
[342739871,1732090344770,-500.0,0.00060547,120]
[342739872,1732090344779,-650.76,0.00060547,21]
[342739873,1732090344788,-998.06,0.00060547,120]
[342739874,1732090344798,-2581.57,0.00060547,120]
[342739875,1732090344809,-635.36,0.00060547,120]
[342739876,1732090344818,-2031.6,0.00060547,120]
[342739877,1732090344827,-3206.56,0.00060547,120]
[342739878,1732090344837,-711.44,0.00060547,120]
[342739879,1732090344846,-729.82,0.00060547,120]
[342739880,1732090344856,-5192.93,0.00060547,120]
[342739881,1732090344866,-707.74,0.00060547,120]
[342739882,1732090344876,-647.87,0.00060547,120]
[342739883,1732090344885,-500.0,0.00060547,120]
[342739884,1732090344895,-720.2,0.00060547,120]
[342739885,1732090344905,-717.59,0.00060547,120]
[342739886,1732090344915,-1703.66,0.00060547,120]
[342739887,1732090344924,-508.31,0.00060547,120]
[342739888,1732090344934,-2604.2,0.00060547,120]
[342739889,1732090344943,-2810.53,0.00060547,120]
[342739890,1732090344953,-2080.78,0.00060547,120]
[342739891,1732090344962,-500.22,0.00060547,120]
[342739892,1732090344972,-1137.2,0.00060547,3]
[342739893,1732090344981,-642.24,0.00060547,30]
[342739894,1732090344991,-1301.4,0.00060547,120]
[342739895,1732090345003,-505.72,0.00060547,120]
[342739896,1732090345024,-946.93,0.00060547,120]
[342739897,1732090345045,-667.95,0.00060547,120]
[342739898,1732090345082,-2400.0,0.00060572,120]
[342739899,1732090345119,-1100.0,0.00060572,120]
[342739900,1732090345156,-1200.0,0.00060572,120]
[342739901,1732090345192,-574.95441761,0.00060649,12]
[342739902,1732090345228,-500.0,0.00060653,67]
[342739903,1732090345252,-500.0,0.00060653,67]
[342739904,1732090345263,-500.0,0.00060653,67]
[342739905,1732090345272,-500.0,0.00060653,67]
[342739906,1732090345282,-500.0,0.00060653,67]
[342739907,1732090345293,-500.0,0.00060653,67]
[342739908,1732090345305,-500.0,0.00060653,67]
[342739909,1732090345316,-500.0,0.00060653,67]
[342739910,1732090345325,-500.0,0.00060653,83]
[342739911,1732090345335,-309.50596774,0.00060708,2]
[342739912,1732090345343,-500.0,0.00060814,69]
[342739913,1732090345354,-500.0,0.00060814,69]
[342739914,1732090345363,-500.0,0.00060814,69]
[342739915,1732090345372,-500.0,0.00060814,69]
[342739916,1732090345382,-500.0,0.00060814,69]
[342739917,1732090345390,-500.0,0.00060814,69]
[342739918,1732090345399,-500.0,0.00060814,69]
[342739919,1732090345409,-500.0,0.00060814,69]
[342739920,1732090345418,-500.0,0.00060814,85]
[342739921,1732090345427,-583.63,0.00060821,120]
[342739922,1732090345436,-1068.5,0.00060821,120]
[342739923,1732090345445,-598.94,0.00060821,120]
[342739924,1732090345454,-1682.29,0.00060821,120]
[342739925,1732090345463,-12247.35,0.00060821,120]
[342739926,1732090345473,-1420.1,0.00060821,120]
[342739927,1732090345482,-338.77218075,0.00060821,120]
[342739928,1732090345491,-1292.82,0.00060821,120]
[342739929,1732090345500,-1329.44,0.00060821,120]
[342739930,1732090345510,-1607.8,0.00060821,120]
[342739931,1732090345519,-1376.52,0.00060821,120]
[342739932,1732090345529,-742.7,0.00060821,20]
[342739933,1732090345538,-843.95,0.00060821,120]
[342739934,1732090345547,-1244.57,0.00060821,120]
[342739935,1732090345559,-1316.06,0.00060821,120]
[342739936,1732090345568,-553.01,0.00060821,120]
[342739937,1732090345578,-721.45,0.00060821,120]
[342739938,1732090345587,-2365.65,0.00060821,120]
[342739939,1732090345596,-526.18,0.00060821,120]
[342739940,1732090345605,-1140.86,0.00060821,120]
[342739941,1732090345614,-1206.39,0.00060821,120]
[342739942,1732090345623,-851.18,0.00060821,120]
[342739943,1732090345632,-811.24,0.00060821,21]
[342739944,1732090345641,-196.00101503,0.00060821,120]
[342739945,1732090345651,-325.68,0.00060821,120]
[342739946,1732090345660,-1177.91,0.00060821,120]
[342739947,1732090345669,-3911.81,0.00060821,120]
[342739948,1732090345678,-7513.0,0.00060821,3]
[342739949,1732090345688,-810.73,0.00060821,120]
[342739950,1732090345697,-618.5,0.00060821,120]
[342739951,1732090345707,-531.91,0.00060821,60]
[342739952,1732090345716,-703.55,0.00060821,120]
[342739953,1732090345725,-578.53,0.00060821,120]
[342739954,1732090345735,-500.0,0.00060821,120]
[342739955,1732090345744,-1133.36,0.00060821,120]
[342739956,1732090345754,-646.34,0.00060821,7]
[342739957,1732090345763,-1092.33,0.00060821,120]
[342739958,1732090345772,-576.16,0.00060821,120]
[342739959,1732090345781,-642.09,0.00060821,3]
[342739960,1732090345790,-1126.69,0.00060821,120]
[342739961,1732090345803,-705.53,0.00060821,120]
[342739962,1732090345812,-1013.55,0.00060821,120]
[342739963,1732090345821,-1520.14,0.00060821,120]
[342739964,1732090345831,-2168.51,0.00060821,120]
[342739965,1732090345840,-500.0,0.00060821,120]
[342739966,1732090345850,-594.32,0.00060821,120]
[342739967,1732090345859,-709.11,0.00060821,120]
[342739968,1732090345869,-511.99,0.00060821,120]
[342739969,1732090345879,-702.33,0.00060821,120]
[342739970,1732090345888,-500.0,0.00060821,120]
[342739971,1732090345897,-797.68,0.00060821,120]
[342739972,1732090345907,-552.5,0.00060821,120]
[342739973,1732090345916,-500.0,0.00060821,120]
[342739974,1732090345927,-514.31,0.00060821,120]
[342739975,1732090345936,-849.65,0.00060821,120]
[342739976,1732090345946,-569.0,0.00060821,120]
[342739977,1732090345955,-700.75,0.00060821,120]
[342739978,1732090345965,-2068.02,0.00060821,120]
[342739979,1732090345974,-798.52,0.00060821,120]
[342739980,1732090345983,-1516.88,0.00060821,120]
[342739981,1732090345992,-982.26,0.00060821,120]
[342739982,1732090346001,-565.30430767,0.00060821,120]
[342739983,1732090346011,-650.76,0.00060821,21]
[342739984,1732090346021,-998.06,0.00060821,120]
[342739985,1732090346031,-2581.57,0.00060821,120]
[342739986,1732090346040,-635.36,0.00060821,120]
[342739987,1732090346052,-2031.6,0.00060821,120]
[342739988,1732090346061,-3206.56,0.00060821,120]
[342739989,1732090346070,-711.44,0.00060821,120]
[342739990,1732090346079,-729.82,0.00060821,120]
[342739991,1732090346088,-5192.93,0.00060821,120]
[342739992,1732090346098,-707.74,0.00060821,120]
[342739993,1732090346107,-647.87,0.00060821,120]
[342739994,1732090346116,-500.0,0.00060821,120]
[342739995,1732090346126,-720.2,0.00060821,120]
[342739996,1732090346135,-717.59,0.00060821,120]
[342739997,1732090346144,-1703.66,0.00060821,120]
[342739998,1732090346153,-508.31,0.00060821,120]
[342739999,1732090346162,-2604.2,0.00060821,120]
[342740000,1732090346171,-2810.53,0.00060821,120]
[342740001,1732090346181,-2080.78,0.00060821,120]
[342740002,1732090346190,-500.22,0.00060821,120]
[342740003,1732090346199,-1137.2,0.00060821,3]
[342740004,1732090346208,-642.24,0.00060821,30]
[342740005,1732090346218,-1301.4,0.00060821,120]
[342740006,1732090346228,-505.72,0.00060821,120]
[342740007,1732090346237,-946.93,0.00060821,120]
[342740008,1732090346247,-667.95,0.00060821,120]
[342740009,1732090346256,-500.0,0.00060846,120]
[342740010,1732090346265,-291.95171253,0.000609,40]
[342740011,1732090346275,-160.864485,0.00060936,2]
[342740012,1732090346283,-150.28,0.00060959,120]
[342740013,1732090346293,-20000.0,0.00061,120]
[342740014,1732090346305,-850.0,0.00061,2]
[342740015,1732090346316,-2185447.4,0.00061,120]
[342740016,1732090346325,-2700.0,0.00061,62]
[342740017,1732090346334,-19140.05,0.00061,120]
[342740018,1732090346343,-583.75,0.00061095,120]
[342740019,1732090346353,-1068.66,0.00061095,120]
[342740020,1732090346363,-599.15431385,0.00061095,120]
[342740021,1732090346372,-1682.47942142,0.00061095,120]
[342740022,1732090346381,-12247.5724,0.00061095,120]
[342740023,1732090346391,-1420.25,0.00061095,120]
[342740024,1732090346401,-1292.86204007,0.00061095,120]
[342740025,1732090346410,-1329.66562788,0.00061095,120]
[342740026,1732090346419,-1607.93,0.00061095,120]
[342740027,1732090346428,-1376.58143016,0.00061095,120]
[342740028,1732090346437,-742.90556603,0.00061095,20]
[342740029,1732090346447,-843.95743729,0.00061095,120]
[342740030,1732090346456,-1244.71,0.00061095,120]
[342740031,1732090346465,-1316.26,0.00061095,120]
[342740032,1732090346475,-553.24,0.00061095,120]
[342740033,1732090346485,-721.45,0.00061095,120]
[342740034,1732090346494,-2365.77,0.00061095,120]
[342740035,1732090346506,-526.26,0.00061095,120]
[342740036,1732090346515,-1140.88,0.00061095,120]
[342740037,1732090346524,-1206.53,0.00061095,120]
[342740038,1732090346534,-851.3,0.00061095,120]
[342740039,1732090346543,-811.28,0.00061095,21]
[342740040,1732090346553,-1178.13,0.00061095,120]
[342740041,1732090346563,-3912.0407,0.00061095,120]
[342740042,1732090346573,-7513.18,0.00061095,3]
[342740043,1732090346582,-810.81,0.00061095,120]
[342740044,1732090346593,-618.53978448,0.00061095,120]
[342740045,1732090346603,-532.09,0.00061095,60]
[342740046,1732090346613,-703.72,0.00061095,120]
[342740047,1732090346622,-578.62,0.00061095,120]
[342740048,1732090346632,-452.14,0.00061095,120]
[342740049,1732090346642,-1133.46345445,0.00061095,120]
[342740050,1732090346651,-646.4,0.00061095,7]
[342740051,1732090346661,-1092.45,0.00061095,120]
[342740052,1732090346671,-576.26,0.00061095,120]
[342740053,1732090346680,-642.23999999,0.00061095,3]
[342740054,1732090346690,-1126.85,0.00061095,120]
[342740055,1732090346701,-705.60832062,0.00061095,120]
[342740056,1732090346711,-1013.77,0.00061095,120]
[342740057,1732090346720,-1520.33,0.00061095,120]
[342740058,1732090346729,-2168.69,0.00061095,120]